bitfinex-derivatives/quotes_ETHF0:USTF0_20250205
["timestamp","ask_amount","ask_price","bid_price","bid_amount"]
[1738771216831,3.2078,2775.1,2774.5,5.71231201]
[1738771218032,3.2078,2775.1,2774.5,5.17311201]
[1738771218240,3.2078,2774.7,2774.1,3.07346653]
[1738771218432,3.2078,2774.7,2774.4,3.07346653]
[1738771218634,3.2078,2774.7,2774.5,5.16307261]
[1738771218833,3.2078,2774.7,2774.5,0.5406]
[1738771219140,4.12357,2775.5,2774.6,4.62247261]
[1738771219338,4.12357,2775.5,2774.9,3.07346653]
[1738771219832,4.12357,2775.5,2775.0,4.68510464]
[1738771220337,3.2078,2775.2,2774.9,0.0054135]
[1738771220532,4.12357,2775.5,2774.9,3.07888003]
[1738771220839,4.12357,2775.5,2775.1,4.62875598]
[1738771221040,4.12357,2775.5,2775.0,4.62875598]
[1738771221333,4.12357,2775.5,2775.2,7.70222251]
[1738771221541,4.12357,2775.5,2775.3,0.5801]
[1738771221729,4.12357,2775.5,2775.3,5.23658655]
[1738771222139,3.2078,2776.3,2775.3,10.23658655]
[1738771222334,0.5851,2776.5,2775.8,3.07346653]
[1738771222530,3.2078,2776.6,2775.8,3.07346653]
[1738771222735,1.1345,2777.1,2775.8,3.07346653]
[1738771222736,3.2078,2776.9,2775.9,4.58901677]
[1738771222935,3.2078,2776.6,2776.0,3.2078]
[1738771223135,3.2078,2776.2,2775.9,4.58901677]
[1738771223336,3.2078,2776.6,2776.1,4.76962532]
[1738771223637,3.2078,2776.6,2776.0,4.76962532]
[1738771223841,3.2078,2776.6,2776.2,4.76962532]
[1738771224243,3.2078,2776.3,2775.6,3.2078]
[1738771224437,3.2078,2776.3,2775.6,3.49320904]
[1738771224637,3.2078,2776.3,2775.9,4.60542067]
[1738771224831,3.2078,2776.3,2775.6,3.2078]
[1738771225043,1.1562,2776.2,2775.6,3.2078]
[1738771225738,3.2078,2776.0,2775.2,3.07346653]
[1738771226040,3.2078,2776.0,2775.7,4.67313089]
[1738771226338,1.79974,2777.5,2775.3,3.7879]
[1738771226339,3.2078,2776.6,2775.8,3.07346653]
[1738771226545,3.2078,2776.6,2775.9,3.2078]
[1738771226731,3.2078,2776.6,2775.9,0.5346]
[1738771226936,3.2078,2776.6,2776.0,4.69790871]
[1738771227335,3.2078,2776.3,2775.9,0.00540365]
[1738771227536,3.2078,2776.3,2776.1,3.07346653]
[1738771227847,0.5729,2776.8,2776.1,3.07346653]
[1738771228146,0.5729,2776.8,2776.2,4.76357853]
[1738771228341,3.2078,2776.7,2776.2,4.76357853]
[1738771229646,3.56501,2777.4,2776.5,3.2078]
[1738771229942,0.35721,2777.4,2777.2,3.07346653]
[1738771230147,0.35721,2777.4,2777.2,43.87346653]
[1738771230342,0.35721,2777.4,2777.3,4.75148796]
[1738771234556,0.35721,2777.4,2777.3,5.11228796]
[1738771235854,3.56501,2777.4,2777.3,4.75148796]
[1738771236057,4.28495,2777.4,2776.9,3.07346653]
[1738771236350,3.2078,2777.3,2776.9,3.07346653]
[1738771236553,0.35721,2777.4,2776.9,3.07346653]
[1738771236764,0.35721,2777.4,2776.6,3.07346653]
[1738771236945,3.92783,2777.0,2776.6,3.07346653]
[1738771237143,3.9279,2776.7,2776.0,3.07346653]
[1738771237347,3.2078,2776.7,2776.0,3.07346653]
[1738771237548,3.2078,2776.7,2776.3,3.07346653]
[1738771237749,3.2078,2776.8,2776.3,3.07346653]
[1738771237956,3.2078,2776.8,2776.2,3.2078]
[1738771237957,1.7044,2776.9,2776.6,3.07346653]
[1738771238255,1.1293,2776.9,2776.6,3.07346653]
[1738771238550,0.2019,2776.8,2776.7,4.57902462]
[1738771239450,0.2019,2776.8,2776.6,3.07346653]
[1738771239957,0.2019,2776.8,2776.7,4.63583984]
[1738771240461,0.2019,2776.8,2776.6,3.07346653]
[1738771241254,0.2019,2776.8,2776.7,4.6306859]
[1738771241451,1.0145,2776.9,2776.7,4.6306859]
[1738771241657,1.0145,2776.9,2776.8,3.2078]
[1738771242058,1.0145,2776.9,2776.8,7.86752122]
[1738771243154,1.0145,2776.9,2776.8,3.2078]
[1738771243362,1.0145,2776.9,2776.6,3.07346653]
[1738771243856,1.0145,2776.9,2776.7,4.63343199]
[1738771244254,1.0145,2776.9,2776.6,3.07346653]
[1738771244858,1.0145,2776.9,2776.5,3.2078]
[1738771245055,1.1343,2776.8,2776.5,3.2078]
[1738771245365,1.1343,2776.8,2776.6,3.07346653]
[1738771245666,1.0145,2776.9,2776.6,7.80159971]
[1738771245854,1.0145,2776.9,2776.6,3.07346653]
[1738771246758,3.2078,2776.7,2776.0,3.07346653]
[1738771246961,3.2078,2776.4,2775.9,0.00540365]
[1738771247159,3.2078,2776.1,2775.9,0.00540365]
[1738771250166,0.72028,2776.0,2775.1,3.07346653]
[1738771250361,3.2078,2775.7,2775.1,3.07346653]
[1738771250563,3.2078,2775.7,2775.1,7.83922522]
[1738771250960,3.92817,2775.7,2775.0,3.2078]
[1738771251160,0.5534,2775.6,2775.0,3.2078]
[1738771251459,0.5534,2775.6,2775.1,3.07887018]
[1738771251460,0.55877083,2775.6,2775.1,3.07887018]
[1738771251860,0.55877083,2775.6,2775.4,3.07346653]
[1738771252159,0.00537083,2775.6,2775.4,3.07346653]
[1738771252363,0.00537083,2775.6,2775.5,4.74847808]
[1738771252558,0.00537083,2775.6,2775.5,5.28317808]
[1738771253066,0.00537083,2775.6,2775.5,46.08317808]
[1738771253970,0.00537083,2775.6,2775.5,45.54847808]
[1738771256361,0.00537083,2775.6,2775.5,45.90927808]
[1738771256957,1.441,2775.8,2775.5,45.90927808]
[1738771257262,0.288,2776.9,2776.2,0.72022]
[1738771257466,1.0162,2776.9,2776.8,3.2078]
[1738771257965,1.0162,2776.9,2776.8,7.92367782]
[1738771258362,1.0162,2776.9,2776.8,4.71587782]
[1738771258565,1.0162,2776.9,2776.6,3.07887018]
[1738771258958,1.0162,2776.9,2776.7,4.73105102]
[1738771259970,1.0162,2776.9,2776.6,3.07887018]
[1738771260157,1.0162,2776.9,2776.6,0.00540365]
[1738771260665,3.2078,2776.8,2776.1,3.2078]
[1738771260866,3.92787,2776.8,2776.1,3.2078]
[1738771261064,0.5296,2776.7,2776.0,3.07346653]
[1738771261265,0.5296,2776.7,2776.3,6.28126653]
[1738771261465,0.5296,2776.7,2774.7,17.89795593]
[1738771261466,1.0162,2776.9,2776.6,6.28126653]
[1738771261666,0.00540365,2776.8,2776.6,6.28126653]
[1738771261860,0.00540365,2776.8,2776.6,3.2078]
[1738771262165,0.72011,2776.7,2776.2,0.00540365]
[1738771262361,3.2078,2776.5,2776.2,0.00540365]
[1738771262560,0.5633,2776.4,2776.2,0.00540365]
[1738771263565,0.7202,2776.3,2775.6,3.2078]
[1738771263766,3.2078,2775.8,2775.2,3.2078]
[1738771263968,0.564,2775.7,2775.2,3.2078]
[1738771264266,0.5633,2775.6,2775.2,3.2078]
[1738771264669,0.5633,2775.6,2774.9,3.2078]
[1738771264869,0.5633,2775.6,2775.1,0.00540365]
[1738771265064,0.5633,2775.6,2775.1,3.07887018]
[1738771265669,0.5633,2775.6,2775.2,3.2078]
[1738771265965,0.564,2775.7,2775.2,7.88848379]
[1738771266173,0.564,2775.7,2775.4,3.07346653]
[1738771267068,0.564,2775.7,2775.2,3.7838]
[1738771267378,0.564,2775.7,2775.1,0.00540365]
[1738771267666,0.5703,2775.6,2775.1,0.00540365]
[1738771267869,3.7457,2775.5,2775.1,0.00540365]
[1738771268066,3.2078,2775.2,2774.2,6.28126653]
[1738771268268,3.2078,2774.6,2773.9,6.28126653]
[1738771268471,3.2078,2774.2,2773.6,6.28126653]
[1738771268669,3.2078,2774.2,2773.6,3.2078]
[1738771268860,0.5738,2774.1,2773.6,3.2078]
[1738771269372,0.5738,2774.1,2773.6,6.28667018]
[1738771269373,0.57920365,2774.1,2773.6,6.28667018]
[1738771269571,2.02110365,2774.1,2773.6,3.07887018]
[1738771269869,2.02110365,2774.1,2773.6,0.00540365]
[1738771269870,3.2078,2773.9,2773.6,0.00540365]
[1738771270670,2.02110365,2774.1,2773.6,0.00540365]
[1738771271170,2.02110365,2774.1,2773.8,3.2078]
[1738771271370,1.44730365,2774.1,2773.8,3.2078]
[1738771271570,1.44730365,2774.1,2773.9,4.72039479]
[1738771271769,0.00540365,2774.1,2773.9,4.72039479]
[1738771272169,0.00540365,2774.1,2773.8,3.2078]
[1738771272672,3.2078,2773.9,2773.6,0.00540365]
[1738771272868,0.5832,2773.8,2773.6,0.00540365]
[1738771273763,1.3128,2773.8,2773.6,0.00540365]
[1738771275375,6.3128,2773.8,2772.5,3.2078]
[1738771275673,3.2078,2773.6,2772.5,3.2078]
[1738771275865,0.532,2773.5,2772.5,3.2078]
[1738771276066,3.2078,2773.3,2772.5,3.2078]
[1738771276468,3.2078,2773.3,2772.6,0.00540365]
[1738771278368,3.2078,2773.0,2772.6,0.00540365]
[1738771278573,1.1712,2772.9,2772.6,0.00540365]
[1738771278873,1.89229,2772.9,2772.2,3.2078]
[1738771279080,1.1712,2772.9,2772.2,3.2078]
[1738771279769,3.2078,2772.7,2772.2,3.2078]
[1738771279972,3.2078,2772.4,2771.4,7.71414176]
[1738771280174,3.2078,2772.4,2772.3,0.00540365]
[1738771280776,0.00540365,2772.6,2772.3,0.00540365]
[1738771280973,3.2078,2772.8,2772.3,7.80967051]
[1738771281171,3.2078,2773.4,2772.7,3.2078]
[1738771281869,3.2078,2773.4,2772.8,40.8]
[1738771282070,4.65,2773.4,2772.8,40.8]
[1738771282277,0.00540365,2773.3,2772.8,40.8]
[1738771282775,0.00540365,2773.3,2772.3,0.00540365]
[1738771282776,3.2078,2772.9,2772.3,0.00540365]
[1738771282976,3.2078,2772.6,2772.3,0.00540365]
[1738771283671,8.92897,2772.6,2772.3,0.00540365]
[1738771283871,8.2078,2772.6,2772.3,0.00540365]
[1738771285572,0.72121,2772.4,2771.4,0.5736]
[1738771285877,3.2078,2772.1,2771.4,0.5736]
[1738771286071,3.2078,2772.1,2771.6,3.2078]
[1738771286371,3.2078,2772.5,2771.6,3.2078]
[1738771286677,0.5852,2772.8,2771.9,3.2078]
[1738771287073,3.793,2772.8,2772.0,4.58958034]
[1738771287279,3.2078,2772.4,2772.0,4.58958034]
[1738771287574,3.2078,2772.4,2771.8,0.00540365]
[1738771287771,3.2078,2772.1,2771.8,0.00540365]
[1738771287972,0.537,2772.0,2771.8,0.00540365]
[1738771288875,0.8256,2772.0,2771.8,0.00540365]
[1738771289476,0.8256,2772.0,2770.5,0.3608]
[1738771289477,0.72144,2771.6,2770.5,3.2078]
[1738771289676,7.6289,2772.0,2770.3,0.5716]
[1738771289677,3.2078,2771.4,2770.3,0.5716]
[1738771289873,3.2078,2771.4,2770.3,41.3716]
[1738771290069,3.2078,2771.4,2770.8,3.2078]
[1738771290277,3.2078,2771.4,2770.9,3.89874176]
[1738771290580,3.2078,2771.9,2771.3,3.35254176]
[1738771290777,3.2078,2771.9,2771.4,3.7485]
[1738771290974,3.2132135,2771.9,2771.4,8.40343281]
[1738771291175,3.2132135,2771.9,2771.5,40.8]
[1738771291376,0.0054135,2771.9,2771.5,40.8]
[1738771291574,0.0054135,2771.9,2771.6,5.27838353]
[1738771291875,3.2078,2773.1,2771.9,0.72132]
[1738771292079,3.2078,2773.1,2772.1,6.56034176]
[1738771292375,3.2078,2773.1,2771.7,0.5722]
[1738771292376,3.2078,2772.5,2772.0,4.69298353]
[1738771292674,3.2078,2772.2,2771.6,3.7932]
[1738771293081,3.5017135,2772.2,2771.7,4.61643584]
[1738771293574,3.2078,2771.8,2771.6,0.0054135]
[1738771294278,3.2078,2772.1,2771.6,0.0054135]
[1738771294576,3.2078,2771.8,2771.6,0.0054135]
[1738771295080,0.535,2771.7,2770.7,3.2078]
[1738771295277,3.2078,2770.9,2770.3,3.2078]
[1738771295780,3.2078,2771.3,2770.4,4.69477045]
[1738771296284,0.0054135,2771.1,2770.6,0.00363528]
[1738771296983,0.0054135,2771.1,2770.7,4.65095458]
[1738771297384,0.0054135,2771.1,2770.9,3.2078]
[1738771297888,3.2078,2771.9,2771.0,4.65630558]
[1738771298085,3.2078,2771.9,2771.3,3.2078]
[1738771298380,0.2885,2772.2,2771.7,3.2078]
[1738771298575,0.3187,2772.2,2771.7,3.2078]
[1738771298781,0.3187,2772.2,2771.8,1.0972]
[1738771298984,0.3187,2772.2,2771.6,3.2078]
[1738771299177,3.2078,2772.0,2771.2,4.3333]
[1738771299587,3.2078,2771.6,2770.9,3.2078]
[1738771299881,3.2078,2771.3,2770.7,0.5431]
[1738771300083,3.2078,2771.0,2770.4,0.5824]
[1738771301878,0.5327,2771.2,2770.4,0.5824]
[1738771302080,0.731,2771.0,2770.7,4.68970136]
[1738771302281,0.731,2771.0,2770.9,3.2078]
[1738771302585,3.2078,2771.9,2770.9,6.56034176]
[1738771302885,1.4435,2771.0,2770.9,5.48448092]
[1738771303073,3.2078,2771.9,2770.9,54.05510167]
[1738771303275,0.0054135,2772.3,2771.8,3.2078]
[1738771303481,0.0054135,2772.3,2771.9,3.35254176]
[1738771303680,0.0054135,2772.3,2771.9,7.9659593]
[1738771303977,0.0054135,2772.3,2772.1,3.2078]
[1738771304382,0.0054135,2772.3,2772.1,7.82121754]
[1738771304579,0.0054135,2772.3,2772.0,3.2078]
[1738771304883,0.0054135,2772.3,2771.4,0.3608]
[1738771304884,0.0054135,2772.3,2771.4,3.2078]
[1738771305080,4.4601,2772.1,2771.1,6.56034176]
[1738771305283,3.2078,2771.8,2771.1,3.2078]
[1738771305482,3.2078,2771.5,2771.1,3.2078]
[1738771305883,1.085,2771.4,2771.1,3.2078]
[1738771306983,3.2078,2771.8,2771.1,3.2078]
[1738771307886,3.92918,2771.8,2771.1,3.2078]
[1738771308084,3.2078,2771.5,2771.1,3.2078]
[1738771308686,3.2078,2771.5,2770.7,3.2078]
[1738771308887,3.92925,2771.5,2770.7,3.2078]
[1738771309078,3.2078,2771.5,2770.7,3.2078]
[1738771309685,3.2078,2771.5,2770.7,6.56034176]
[1738771309881,3.2078,2771.5,2771.1,3.2078]
[1738771310185,3.2078,2771.8,2771.1,3.2078]
[1738771310790,3.2396,2771.8,2771.4,3.2078]
[1738771311187,3.2396,2771.8,2771.1,3.2078]
[1738771311494,3.2396,2771.8,2770.8,4.74832413]
[1738771311495,3.2078,2771.5,2770.8,3.2078]
[1738771312280,3.2078,2771.5,2770.9,4.60121547]
[1738771312681,3.2078,2771.5,2770.8,3.2078]
[1738771313493,4.651,2771.5,2770.8,3.2078]
[1738771314194,3.2078,2770.9,2770.6,0.00363528]
[1738771314583,1.1739,2770.8,2770.6,0.00363528]
[1738771314893,1.89553,2770.8,2770.6,0.00363528]
[1738771315090,1.1739,2770.8,2770.6,0.00363528]
[1738771315591,0.5658,2771.1,2770.6,0.00363528]
[1738771315789,4.651,2771.5,2770.8,3.2078]
[1738771315990,3.2078,2771.1,2770.7,4.7335072]
[1738771316184,3.2078,2770.8,2770.6,0.00363528]
[1738771317899,3.2078,2770.8,2769.5,3.2078]
[1738771318087,3.2078,2770.4,2769.5,3.2078]
[1738771318398,3.4965,2770.4,2769.8,3.2078]
[1738771319296,3.5019135,2770.4,2769.8,3.2132135]
[1738771320197,3.2078,2770.1,2769.9,4.76090251]
[1738771320391,3.2078,2770.1,2769.8,0.0054135]
[1738771320697,0.5591,2770.3,2769.8,0.0054135]
[1738771321195,0.2941135,2770.4,2769.8,3.2132135]
[1738771321393,0.2941135,2770.4,2769.8,0.0054135]
[1738771321603,3.2078,2770.2,2769.8,0.0054135]
[1738771321893,1.1248,2770.1,2769.8,0.0054135]
[1738771322096,0.5746,2770.1,2769.8,0.0054135]
[1738771322296,3.2078,2770.2,2769.8,0.0054135]
[1738771323091,0.5837,2770.1,2769.8,0.0054135]
[1738771323395,0.2941135,2770.4,2769.8,0.0054135]
[1738771323599,1.4439,2770.1,2769.8,0.0054135]
[1738771323803,1.4439,2770.1,2769.9,4.62396881]
[1738771324099,1.4439,2770.1,2769.8,0.0054135]
[1738771324305,2.16572,2770.1,2769.8,0.0054135]
[1738771324502,1.1575,2770.0,2769.8,0.0054135]
[1738771324697,0.5837,2769.9,2769.8,0.0054135]
[1738771324894,4.51336,2769.9,2769.8,0.0054135]
[1738771325098,0.72194,2769.6,2768.8,3.2078]
[1738771325402,3.2078,2769.5,2768.8,3.2078]
[1738771325592,0.722,2769.4,2768.8,3.2078]
[1738771325798,0.5716,2769.4,2768.8,3.2078]
[1738771327198,3.2078,2769.2,2768.3,1.1426]
[1738771327404,0.5522,2769.1,2768.3,1.1426]
[1738771327700,0.5522,2769.1,2768.3,0.5689]
[1738771328099,0.0054135,2769.0,2768.3,0.5689]
[1738771328595,0.0054135,2769.0,2767.9,4.1543]
[1738771328791,0.0054135,2769.0,2767.9,4.07701502]
[1738771328996,0.0054135,2769.0,2768.3,3.2078]
[1738771329196,3.2078,2768.9,2768.0,7.9717588]
[1738771329397,3.2078,2768.6,2768.0,3.2078]
[1738771329903,0.0054135,2769.0,2767.1,3.2078]
[1738771329904,3.2078,2768.3,2767.1,3.2078]
[1738771330104,3.2078,2768.0,2767.1,3.2078]
[1738771330303,3.2078,2767.4,2766.1,3.2078]
[1738771330607,3.2078,2767.1,2766.1,3.2078]
[1738771330903,3.2132135,2767.0,2766.2,4.59214596]
[1738771331506,3.2132135,2767.0,2766.1,3.2078]
[1738771331700,3.2132135,2767.0,2765.9,3.2078]
[1738771332099,3.2132135,2767.0,2766.3,3.2078]
[1738771332301,3.2132135,2767.0,2765.9,4.6764113]
[1738771332603,3.2132135,2767.0,2765.8,7.21376558]
[1738771332805,4.6588135,2767.0,2766.1,3.2078]
[1738771334002,4.6588135,2767.0,2765.8,4.36728558]
[1738771334003,1.4510135,2767.0,2766.6,3.2078]
[1738771334505,1.4510135,2767.0,2766.7,4.79988377]
[1738771334704,4.6588135,2767.0,2766.3,3.2078]
[1738771335001,4.6588135,2767.0,2766.3,7.84400249]
[1738771335198,4.6588135,2767.0,2766.3,3.2078]
[1738771335604,0.5835,2766.9,2766.3,3.2078]
[1738771336006,1.3664636,2767.0,2766.8,3.2078]
[1738771336205,0.5794,2768.3,2766.8,3.2078]
[1738771336404,3.2078,2769.1,2768.2,3.2078]
[1738771336911,3.2078,2769.1,2768.5,3.2078]
[1738771337106,3.2078,2769.1,2768.3,45.43259332]
[1738771337409,4.0251135,2769.1,2768.5,0.0054135]
[1738771338001,3.2078,2768.8,2768.5,0.0054135]
[1738771338199,3.2078,2768.8,2767.6,3.2078]
[1738771338402,3.2078,2768.8,2767.1,3.35254176]
[1738771338403,3.2078,2768.2,2767.3,3.2078]
[1738771338908,3.2078,2768.5,2767.2,4.74578548]
[1738771339101,3.2078,2768.1,2767.1,3.6462252]
[1738771339306,3.2078,2768.1,2767.3,3.2078]
[1738771339806,3.2078,2768.1,2767.0,0.5635]
[1738771340008,3.2078,2767.8,2766.9,0.5805]
[1738771340198,3.2078,2767.5,2766.5,0.3616]
[1738771340509,1.0714,2767.4,2766.6,4.60718493]
[1738771340710,0.0054135,2767.3,2766.7,3.2078]
[1738771342807,0.0054135,2767.3,2766.8,5.43216104]
[1738771343101,3.2078,2768.4,2767.1,3.35254176]
[1738771343307,0.5748,2768.5,2768.0,3.2078]
[1738771343709,1.1519,2769.0,2768.0,3.5694]
[1738771343916,0.5748,2768.9,2768.4,3.2078]
[1738771344508,3.2078,2768.5,2768.4,0.0054135]
[1738771346417,8.2078,2768.5,2767.2,3.2078]
[1738771346618,3.2078,2767.9,2767.2,3.2078]
[1738771346811,0.5372,2767.8,2766.8,0.28561955]
[1738771347117,0.5372,2767.8,2766.7,0.5412]
[1738771347319,0.5372,2767.8,2766.7,0.83440903]
[1738771347516,0.5372,2767.8,2766.9,3.2078]
[1738771347913,0.5372,2767.8,2767.2,3.2078]
[1738771348115,3.2078,2767.6,2767.0,3.2078]
[1738771348514,0.5372,2767.8,2766.7,0.5412]
[1738771348515,3.2078,2767.3,2766.7,3.2078]
[1738771349020,3.2078,2767.3,2766.1,0.5361]
[1738771349021,3.2078,2767.3,2766.4,3.2078]
[1738771349213,3.2078,2767.0,2766.4,3.2078]
[1738771349412,3.2132135,2767.3,2766.4,3.2078]
[1738771349614,3.2078,2767.0,2766.4,3.2078]
[1738771350917,0.5322,2766.9,2766.4,3.2078]
[1738771351821,3.2078,2767.0,2766.5,4.726714]
[1738771352019,3.2078,2767.0,2766.4,3.2078]
[1738771352220,3.2078,2767.0,2766.1,0.5361]
[1738771352420,3.2078,2767.0,2766.3,3.2078]
[1738771352624,3.2078,2766.6,2766.0,3.2078]
[1738771352922,3.2078,2766.3,2765.5,3.2078]
[1738771353117,0.5322,2766.2,2765.5,3.2078]
[1738771354022,3.2078,2766.6,2765.6,4.70450348]
[1738771354226,3.2078,2766.6,2765.9,3.2078]
[1738771355227,3.2078,2766.6,2766.0,4.73322701]
[1738771355520,3.2078,2767.4,2766.4,3.2078]
[1738771355722,3.2078,2767.4,2766.9,3.2078]
[1738771355927,3.2078,2767.4,2766.7,3.2078]
[1738771356833,1.0893135,2767.3,2766.7,3.2078]
[1738771357029,1.1120135,2767.3,2766.7,3.2078]
[1738771357726,1.9167135,2767.3,2766.7,3.2078]
[1738771357929,0.8328135,2767.3,2766.8,4.61005167]
[1738771358117,0.8328135,2767.3,2767.0,3.2078]
[1738771358317,0.8328135,2767.3,2767.1,3.35254176]
[1738771358524,0.8328135,2767.3,2767.2,0.5762]
[1738771358726,0.0281135,2767.3,2767.2,0.5762]
[1738771358928,3.2078,2768.2,2767.4,0.7225]
[1738771359126,3.2078,2768.2,2767.8,3.2078]
[1738771359733,3.4967,2768.2,2767.8,3.2078]
[1738771360033,4.3012,2768.2,2767.8,3.2078]
[1738771360425,3.2078,2767.9,2767.7,0.0054135]
[1738771360729,3.2078,2767.9,2766.9,3.2078]
[1738771360928,3.2078,2767.5,2766.9,3.2078]
[1738771361224,3.2078,2767.1,2766.1,0.563]
[1738771361433,3.2078,2766.5,2765.9,3.2078]
[1738771361623,3.2078,2766.5,2765.6,0.5833]
[1738771361830,3.2078,2766.2,2765.6,0.5833]
[1738771362127,3.2078,2766.2,2765.5,3.2078]
[1738771362831,3.2078,2765.9,2765.2,3.2078]
[1738771364630,0.0054135,2766.5,2765.5,6.56034176]
[1738771364831,0.0054135,2766.5,2765.8,3.2078]
[1738771365626,0.0054135,2766.5,2765.9,4.75374157]
[1738771365931,3.2078,2766.2,2765.6,0.5856]
[1738771366135,3.2132135,2766.5,2765.7,3.2078]
[1738771366432,3.9359635,2766.5,2765.7,3.2078]
[1738771366733,3.2078,2766.1,2765.2,3.2078]
[1738771367726,3.2078,2766.1,2765.3,4.78405447]
[1738771368034,0.0054135,2766.5,2764.9,0.5785]
[1738771368035,3.2078,2766.4,2765.5,3.9308]
[1738771368326,3.2078,2766.4,2765.8,3.2078]
[1738771369031,4.0108,2766.4,2765.8,3.2078]
[1738771369229,0.803,2766.4,2766.1,3.2078]
[1738771370133,3.2078,2766.2,2765.6,3.2078]
[1738771370337,3.2078,2766.2,2765.5,3.2078]
[1738771370925,3.2078,2765.9,2765.1,3.2078]
[1738771372034,0.5434,2766.1,2765.2,4.6958608]
[1738771372240,0.5434,2766.1,2765.6,3.2078]
[1738771372642,3.2078,2766.2,2765.6,3.2078]
[1738771374343,3.2078,2766.2,2765.3,3.2078]
[1738771374642,3.93064,2766.2,2765.3,3.2078]
[1738771374942,0.7229,2766.0,2765.3,3.2078]
[1738771375136,0.5864,2765.9,2765.3,3.2078]
[1738771375836,0.803,2766.4,2765.7,3.2078]
[1738771376031,0.803,2766.4,2765.8,3.2078]
[1738771376736,0.803,2766.4,2765.4,3.2078]
[1738771377135,0.803,2766.4,2765.6,4.6493755]
[1738771377336,0.803,2766.4,2765.5,4.6493755]
[1738771377635,0.803,2766.4,2765.4,3.2078]
[1738771377839,0.803,2766.4,2765.5,4.7189802]
[1738771378345,0.803,2766.4,2765.8,3.2078]
[1738771378535,0.803,2766.4,2766.1,3.2078]
[1738771378937,0.803,2766.4,2766.2,4.70388092]
[1738771379337,0.803,2766.4,2766.3,0.7228]
[1738771379643,0.803,2766.4,2766.1,3.93064]
[1738771379840,0.803,2766.4,2766.3,4.70388092]
[1738771380041,0.803,2766.4,2766.2,5.40978641]
[1738771380239,0.803,2766.4,2766.3,4.07534176]
[1738771380542,3.7684,2767.5,2766.3,8.03950817]
[1738771380742,3.7684,2767.5,2766.8,3.2078]
[1738771381337,3.7646,2768.1,2767.2,3.2078]
[1738771381537,0.00542388,2767.9,2767.8,3.2078]
[1738771381839,15.3678352,2768.4,2767.8,7.28275176]
[1738771382041,13.8367419,2768.4,2768.2,6.56034176]
[1738771382242,8.56750848,2768.4,2768.2,6.56034176]
[1738771382438,4.07679108,2768.4,2768.3,5.42762001]
[1738771382740,0.5473,2770.0,2768.3,8.85437803]
[1738771382941,3.2078,2770.6,2769.9,3.2078]
[1738771383246,0.2887,2770.1,2769.9,3.2078]
[1738771383637,0.2887,2770.1,2769.7,0.00542388]
[1738771383638,0.2887,2770.1,2770.0,4.67199152]
[1738771383839,0.2887,2770.1,2769.7,0.00542388]
[1738771384039,0.2887,2770.1,2769.8,4.70299426]
[1738771384244,0.2887,2770.1,2770.0,4.70299426]
[1738771384444,0.2887,2770.1,2769.7,0.00542388]
[1738771384940,3.2078,2770.0,2768.6,3.35254176]
[1738771385135,3.2078,2769.4,2768.5,3.2078]
[1738771385537,3.2078,2769.4,2768.4,3.2078]
[1738771385941,3.2078,2769.4,2768.3,7.85248405]
[1738771386148,3.2078,2769.4,2768.6,0.00542388]
[1738771386347,3.2078,2768.8,2768.6,0.00542388]
[1738771386646,8.2078,2768.8,2767.9,3.2078]
[1738771386853,3.2078,2768.5,2767.9,3.2078]
[1738771387236,3.2078,2768.1,2767.2,3.2078]
[1738771387443,3.2078,2767.8,2766.6,3.2078]
[1738771387651,0.5709,2767.7,2766.6,6.56034176]
[1738771387840,0.00542388,2767.5,2767.0,3.2078]
[1738771388043,0.00542388,2767.5,2767.3,3.2078]
[1738771388747,0.00542388,2767.5,2767.0,3.2078]
[1738771389341,3.2078,2767.4,2766.7,3.2078]
[1738771389538,3.2078,2767.4,2766.2,3.35254176]
[1738771389539,3.2078,2767.4,2766.5,3.2078]
[1738771389950,3.2078,2767.4,2766.8,3.2078]
[1738771390338,0.00542388,2767.5,2767.3,3.2078]
[1738771391140,0.00542388,2767.5,2767.4,4.69686154]
[1738771391746,0.00542388,2767.5,2767.4,9.69686154]
[1738771391942,0.00542388,2767.5,2767.4,13.0494033]
[1738771392145,0.00542388,2767.5,2767.4,4.69686154]
[1738771392741,0.00542388,2767.5,2767.2,3.2078]
[1738771393154,0.00542388,2767.5,2767.3,4.69171244]
[1738771393652,0.00542388,2767.5,2767.4,3.35254176]
[1738771393847,0.00542388,2767.5,2767.4,4.07505176]
[1738771394154,0.5864,2768.7,2767.4,14.88113793]
[1738771394360,3.2078,2768.5,2768.0,3.2078]
[1738771394556,0.5864,2768.7,2768.0,3.2078]
[1738771395051,3.2078,2769.7,2768.6,6.56034176]
[1738771395244,0.5391,2769.9,2769.0,6.56034176]
[1738771395443,3.2078,2770.6,2769.6,3.2078]
[1738771395648,3.2078,2770.6,2769.9,3.2078]
[1738771395847,3.2078,2770.3,2769.4,3.2078]
[1738771396052,0.00542388,2770.3,2770.0,3.2078]
[1738771396449,0.00542388,2770.3,2770.0,8.2078]
[1738771396650,3.2078,2771.8,2770.0,57.66802313]
[1738771396847,1.1283,2772.1,2771.6,3.2078]
[1738771396848,0.5523,2772.1,2771.6,3.2078]
[1738771397042,0.27994506,2772.0,2771.3,4.07402176]
[1738771397255,0.5748,2772.9,2771.9,3.2078]
[1738771397454,3.2078,2772.1,2771.4,4.77215402]
[1738771397650,0.5748,2772.9,2771.4,4.77215402]
[1738771397651,3.2078,2771.8,2771.4,4.77215402]
[1738771397851,0.27994506,2771.5,2770.9,3.2078]
[1738771398051,0.27994506,2770.7,2770.3,40.8]
[1738771398248,3.2078,2771.5,2770.6,3.2078]
[1738771398453,3.2078,2771.5,2770.4,4.65243283]
[1738771398454,0.27994506,2771.0,2770.9,3.21321399]
[1738771398656,0.27994506,2771.2,2770.9,3.21321399]
[1738771398855,3.2078,2771.5,2771.0,4.74321055]
[1738771399053,3.2078,2771.5,2770.9,3.21321399]
[1738771399054,0.27994506,2771.2,2770.9,3.21321399]
[1738771399253,0.27994506,2771.0,2770.9,3.21321399]